bitfinex/quotes_SOLUSD_20250920
["timestamp","ask_amount","ask_price","bid_price","bid_amount"]
[1758366043590,0.1,237.82,237.81,64.41983588]
[1758366044604,0.1,237.85,237.84,14.86553176]
[1758366044799,0.1,237.85,237.84,46.90553176]
[1758366045006,0.1,237.85,237.84,47.59553176]
[1758366045917,0.1,237.85,237.84,51.80003899]
[1758366047005,0.1,237.85,237.84,51.11003899]
[1758366051126,0.1,237.85,237.84,51.80003899]
[1758366051602,0.1,237.85,237.84,19.76003899]
[1758366051805,0.1,237.85,237.84,51.80003899]
[1758366054022,0.1,237.85,237.84,51.09003899]
[1758366054221,0.1,237.85,237.84,19.07003899]
[1758366054421,0.1,237.85,237.84,51.09003899]
[1758366054813,0.1,237.85,237.84,51.78003899]
[1758366058843,0.1,237.85,237.84,19.07003899]
[1758366059007,0.82,237.85,237.84,19.07003899]
[1758366059207,0.82,237.85,237.84,47.1898549]
[1758366059425,0.82,237.85,237.84,1.26993775]
[1758366059644,0.82,237.85,237.84,33.30993775]
[1758366060637,0.1,237.85,237.84,33.30993775]
[1758366061341,0.1,237.85,237.84,37.51444498]
[1758366061833,0.1,237.85,237.84,52.06436213]
[1758366071164,0.1,237.85,237.84,51.39436213]
[1758366071331,0.1,237.85,237.84,52.06436213]
[1758366072140,0.1,237.85,237.84,20.02436213]
[1758366072339,0.1,237.85,237.84,52.04436213]
[1758366085748,0.1,237.85,237.84,52.7549411]
[1758366091760,0.1,237.85,237.84,20.7349411]
[1758366091970,0.1,237.85,237.84,52.7349411]
[1758366093367,0.1,237.85,237.84,52.0649411]
[1758366094265,0.1,237.85,237.84,20.0649411]
[1758366094459,0.1,237.85,237.84,52.0649411]
[1758366094777,0.79,237.85,237.84,18.08442438]
[1758366094943,0.79,237.85,237.84,51.78061796]
[1758366095142,0.79,237.85,237.84,52.0649411]
[1758366095668,0.1,237.85,237.84,52.7349411]
[1758366106275,0.1,237.88,237.87,31.2]
[1758366106487,0.1,237.88,237.87,79.48083156]
[1758366106679,0.1,237.88,237.87,80.15083156]
[1758366107478,0.1,237.93,237.92,13.87991715]
[1758366107660,0.1,237.93,237.92,48.28074321]
[1758366107868,0.1,237.93,237.92,53.15383668]
[1758366109066,0.1,237.96,237.93,0.28432314]
[1758366109274,0.1,237.96,237.93,16.53043387]
[1758366110087,0.1,237.96,237.93,20.73335069]
[1758366110454,0.89,237.99,237.97,13.87991715]
[1758366110455,0.2,237.99,237.97,13.87991715]
[1758366110659,0.2,237.99,237.97,50.28117162]
[1758366110863,0.1,238.0,237.99,45.07991715]
[1758366111063,0.1,238.0,237.99,81.50113631]
[1758366111264,0.1,238.03,238.0,20.0]
[1758366111483,0.1,238.03,238.02,45.07991715]
[1758366111659,0.1,238.05,238.04,0.14216157]
[1758366111854,0.79,238.05,238.04,45.07991715]
[1758366112162,0.79,238.05,238.04,52.30140849]
[1758366112381,0.79,238.05,238.04,50.32089177]
[1758366112573,0.79,238.05,238.04,52.30140849]
[1758366115754,0.79,238.05,238.04,52.28140849]
[1758366116371,0.79,238.05,238.04,65.01671397]
[1758366116768,0.79,238.05,238.04,28.59573935]
[1758366116969,0.79,238.05,238.04,60.81573935]
[1758366117586,0.79,238.05,238.04,65.01671397]
[1758366118582,0.79,238.05,238.04,32.79671397]
[1758366118782,0.79,238.05,238.04,65.01671397]
[1758366118984,0.1,238.05,238.04,65.01671397]
[1758366119397,0.1,238.05,238.04,65.73671397]
[1758366120089,0.1,238.05,238.04,65.01671397]
[1758366120497,0.1,238.05,238.04,65.73671397]
[1758366121460,0.1,238.07,238.05,45.07991715]
[1758366121660,0.1,238.07,238.05,47.72043387]
[1758366121867,0.1,238.08,238.07,44.93775558]
[1758366122080,0.1,238.08,238.07,79.28043387]
[1758366122291,0.1,238.08,238.07,79.94043387]
[1758366122659,0.1,238.1,238.08,0.14216157]
[1758366122862,0.1,238.1,238.09,48.74043387]
[1758366123077,1e-08,238.13,238.12,45.07991715]
[1758366123385,1e-08,238.13,238.12,79.32043387]
[1758366124286,1e-08,238.13,238.12,84.17999711]
[1758366126394,0.71,238.2,238.13,13.87991715]
[1758366126571,0.71,238.2,238.18,1.98051672]
[1758366126895,0.81,238.19,238.18,47.81611073]
[1758366127071,0.81,238.19,238.18,2.26483986]
[1758366127272,0.81,238.19,238.18,34.50483986]
[1758366127673,0.1,238.19,238.18,34.50483986]
[1758366127988,0.81,238.19,238.18,48.10043387]
[1758366128178,0.81,238.19,238.18,52.2989392]
[1758366130665,0.81,238.19,238.18,46.11991715]
[1758366130995,0.81,238.19,238.18,48.08043387]
[1758366131594,0.81,238.19,238.18,32.50432314]
[1758366134692,0.81,238.19,238.18,34.48483986]
[1758366134992,0.81,238.19,238.18,47.00979073]
[1758366135196,0.81,238.19,238.18,51.20829606]
[1758366135394,0.1,238.19,238.18,51.20829606]
[1758366136792,0.1,238.19,238.18,65.46389007]
[1758366137578,0.1,238.19,238.18,65.44389007]
[1758366139195,0.71,238.26,238.19,13.87991715]
[1758366139399,0.2,238.29,238.26,13.87991715]
[1758366139578,0.2,238.29,238.28,1.98051672]
[1758366139780,0.71,238.28,238.27,34.48483986]
[1758366140182,0.2,238.29,238.28,0.28432314]
[1758366140394,0.2,238.29,238.28,2.26483986]
[1758366140597,0.2,238.29,238.28,15.86043387]
[1758366140781,0.2,238.29,238.28,20.71717719]
[1758366140978,0.2,238.29,238.28,20.05717719]
[1758366141177,0.91,238.29,238.28,52.27717719]
[1758366141784,0.2,238.29,238.28,52.27717719]
[1758366142979,0.91,238.29,238.28,0.28432314]
[1758366143189,0.91,238.29,238.28,32.50432314]
[1758366144405,0.91,238.29,238.28,34.48483986]
[1758366144812,5.10658676,238.29,238.25,0.28432314]
[1758366144985,5.10658676,238.29,238.26,32.22]
[1758366145308,0.71,238.28,238.26,32.22]
[1758366145493,0.71,238.27,238.26,32.50432314]
[1758366146379,0.71,238.27,238.23,0.14216157]
[1758366146596,4.90693847,238.27,238.24,32.22]
[1758366146803,0.66,238.26,238.24,32.22]
[1758366146986,0.66,238.25,238.23,0.28432314]
[1758366147308,4.19693847,238.27,238.24,32.22]
[1758366147484,4.19674332,238.28,238.24,32.22]
[1758366147686,0.66,238.27,238.24,32.22]
[1758366147986,0.66,238.26,238.24,32.22]
[1758366148196,0.66,238.25,238.24,32.22]
[1758366160916,2.80175486,238.26,238.24,32.22]
[1758366161114,2.80175486,238.25,238.24,32.22]
[1758366161314,2.80175486,238.26,238.24,32.22]
[1758366161612,2.80175486,238.25,238.24,32.22]
[1758366163520,3.46175486,238.25,238.24,32.22]
[1758366164623,2.80175486,238.25,238.24,32.22]
[1758366165618,2.80175486,238.26,238.24,34.14418085]
[1758366165818,2.80175486,238.28,238.25,0.66]
[1758366165997,0.2,238.29,238.24,36.41741475]
[1758366165998,2.80175486,238.27,238.26,32.84]
[1758366166198,2.80175486,238.28,238.26,32.84]
[1758366166399,2.80175486,238.27,238.26,32.84]
[1758366166725,2.80175486,238.28,238.26,32.84]
[1758366166931,2.82374787,238.27,238.26,32.84]
[1758366168228,2.82374787,238.28,238.26,32.84]
[1758366168430,2.82374787,238.27,238.26,32.84]
[1758366168723,2.82374787,238.28,238.26,32.84]
[1758366168909,2.82374787,238.27,238.26,32.84]
[1758366169111,2.82374787,238.28,238.26,32.84]
[1758366169317,2.82374787,238.27,238.26,32.84]
[1758366169514,0.2,238.29,238.26,32.84]
[1758366169515,2.82374787,238.28,238.26,32.84]
[1758366169719,2.82374787,238.27,238.26,32.84]
[1758366169905,2.82374787,238.28,238.26,32.84]
[1758366170113,2.82374787,238.27,238.26,32.84]
[1758366170317,2.82374787,238.28,238.26,32.84]
[1758366170521,2.82374787,238.27,238.26,32.84]
[1758366170823,2.82374787,238.28,238.26,32.84]
[1758366171027,2.82374787,238.27,238.26,32.84]
[1758366171325,2.82374787,238.28,238.26,32.84]
[1758366171623,2.82374787,238.27,238.26,32.84]
[1758366171825,2.82374787,238.28,238.26,32.84]
[1758366172025,2.82374787,238.27,238.26,32.84]
[1758366172212,2.82374787,238.28,238.26,32.84]
[1758366172513,2.82374787,238.27,238.26,32.84]
[1758366172708,2.82374787,238.28,238.26,32.84]
[1758366172913,2.82374787,238.27,238.26,32.84]
[1758366181401,2.82374787,238.27,238.26,32.18]
[1758366183430,3.48374787,238.27,238.26,32.18]
[1758366183933,7.68066733,238.27,238.22,0.67]
[1758366184234,2.82374787,238.26,238.23,32.14]
[1758366184443,3.48374787,238.25,238.24,32.12]
[1758366184644,7.68101964,238.25,238.24,32.14]
[1758366184844,8.94520049,238.25,238.24,32.14]
[1758366185134,8.94520049,238.25,238.19,0.81216157]
[1758366185339,2.82374787,238.24,238.19,0.95432314]
[1758366185539,2.82374787,238.23,238.2,0.67]
[1758366185718,2.82374787,238.22,238.21,32.14]
[1758366185928,2.82374787,238.23,238.21,32.14]
[1758366186236,2.82374787,238.22,238.21,32.14]
[1758366186636,2.82374787,238.22,238.21,32.81]
[1758366186834,2.82374787,238.22,238.21,50.88789372]
[1758366187035,2.82374787,238.26,238.22,0.28432314]
[1758366187234,6.12102868,238.28,238.23,32.81]
[1758366187235,2.82374787,238.25,238.23,32.81]
[1758366187539,2.82374787,238.24,238.23,32.14]
[1758366187755,2.82374787,238.24,238.23,33.68850399]
[1758366187917,2.82374787,238.24,238.23,34.35850399]
[1758366189941,2.82374787,238.24,238.23,32.14]
[1758366191624,3.48374787,238.24,238.23,32.14]
[1758366192239,7.68119582,238.24,238.23,32.14]
[1758366194519,2.82374787,238.24,238.23,32.14]
[1758366195039,2.82374787,238.24,238.23,32.81]
[1758366197247,3.48374787,238.24,238.23,32.14]
[1758366197434,7.68119582,238.24,238.23,32.14]
[1758366197629,2.82374787,238.24,238.23,32.14]
[1758366197852,2.82374787,238.24,238.23,32.81]
[1758366198050,2.82374787,238.24,238.23,34.07418085]
[1758366198251,2.82374787,238.24,238.23,38.27180499]
[1758366198842,0.2,238.29,238.24,13.87991715]
[1758366199047,2.8315501,238.28,238.27,1.26418085]
[1758366199351,2.8315501,238.28,238.27,34.07418085]
[1758366200036,2.8315501,238.28,238.27,37.00691946]
[1758366202941,2.8315501,238.28,238.27,32.81]
[1758366203136,2.8315501,238.28,238.27,32.14]
[1758366203324,4.75573095,238.28,238.27,32.14]
[1758366204427,4.09573095,238.28,238.27,32.14]
[1758366206656,2.8315501,238.28,238.27,32.84]
[1758366206840,2.8315501,238.28,238.27,33.12432314]
[1758366207827,2.8315501,238.28,238.27,37.3212426]
[1758366208047,0.2,238.29,238.28,0.28432314]
[1758366208347,3.02949445,238.29,238.28,0.98432314]
[1758366208553,0.2,238.29,238.28,0.98432314]
[1758366209248,0.2,238.29,238.28,5.18106646]
[1758366210150,0.2,238.29,238.28,20.7511907]
[1758366211036,0.2,238.29,238.28,50.91666047]
[1758366215763,0.2,238.29,238.28,50.21666047]
[1758366216656,0.89,238.29,238.27,0.28432314]
[1758366216837,0.89,238.29,238.28,32.14]
[1758366217033,0.2,238.29,238.25,0.14216157]
[1758366217249,0.69,238.28,238.26,32.14]
[1758366217454,0.69,238.28,238.24,13.59559401]
[1758366217648,0.69,238.28,238.25,32.14]
[1758366220063,1.97453023,238.28,238.24,0.28432314]
[1758366220361,1.97453023,238.26,238.19,0.7]
[1758366220558,0.69,238.25,238.2,17.79373727]
[1758366220760,1.97453023,238.26,238.21,32.84]
[1758366221075,2.66453023,238.26,238.22,0.84216157]
[1758366221373,7.02138865,238.28,238.23,32.14]
[1758366221374,4.79915537,238.28,238.23,32.14]
[1758366221570,2.66453023,238.28,238.23,36.33752858]
[1758366221776,3.02462514,238.29,238.24,2.95885337]
[1758366221948,0.2,238.29,238.26,0.28432314]
[1758366222146,0.2,238.29,238.27,32.16]
[1758366223065,0.2,238.29,238.28,0.98432314]
[1758366224067,0.2,238.29,238.28,5.18106646]
[1758366224267,0.2,238.29,238.28,20.7511907]
[1758366224563,0.2,238.29,238.28,18.77666047]
[1758366227648,0.2,238.29,238.28,20.7511907]
[1758366228471,0.2,238.29,238.28,33.63362883]
[1758366231292,0.2,238.29,238.28,30.9590986]
[1758366231464,0.2,238.29,238.28,13.16676127]
[1758366231672,0.89,238.29,238.28,45.30676127]
[1758366232473,0.2,238.29,238.28,45.30676127]
[1758366233163,0.89,238.29,238.28,45.30676127]
[1758366234774,0.2,238.29,238.28,45.30676127]
[1758366236371,0.2,238.29,238.28,49.50350459]
[1758366237852,0.2,238.29,238.28,45.30676127]
[1758366238559,0.2,238.29,238.28,13.16676127]
[1758366238760,0.2,238.29,238.28,45.30676127]
[1758366239562,0.2,238.29,238.28,45.02243813]
[1758366240262,0.2,238.29,238.28,45.72243813]
[1758366240464,0.2,238.29,238.28,45.02243813]
[1758366240868,0.2,238.29,238.28,45.72243813]
[1758366241374,0.2,238.29,238.28,49.91918145]
[1758366241572,0.2,238.29,238.28,49.21918145]
[1758366242382,0.2,238.29,238.28,49.89918145]
[1758366242761,0.2,238.29,238.28,49.21918145]
[1758366243474,0.91,238.29,238.28,12.88243813]
[1758366243658,0.91,238.29,238.28,32.12]
[1758366246193,3.02970761,238.29,238.28,32.12]
[1758366246390,0.2,238.29,238.28,32.12]
[1758366246600,0.2,238.29,238.28,37.28106646]
[1758366246900,0.2,238.29,238.28,39.25559669]
[1758366247779,0.2,238.29,238.28,37.28106646]
[1758366250388,3.03105252,238.29,238.28,37.28106646]
[1758366253401,3.03105252,238.29,238.28,32.40432314]
[1758366253713,3.03105252,238.29,238.28,32.38432314]
[1758366254290,5.71558275,238.29,238.27,12.69602819]
[1758366254499,3.54105252,238.28,238.25,4.19725278]
[1758366254712,2.83105252,238.27,238.26,32.1]
[1758366256424,2.83105252,238.27,238.26,36.9770956]
[1758366257617,2.83105252,238.27,238.26,36.2970956]
[1758366258312,2.83105252,238.27,238.26,36.9770956]
[1758366259616,2.83105252,238.27,238.26,36.2970956]
[1758366259913,2.83105252,238.27,238.26,32.1]
[1758366260220,3.54105252,238.27,238.26,32.1]
[1758366260430,3.54105252,238.27,238.25,12.87092318]
[1758366260591,2.17453023,238.29,238.26,32.08]
[1758366260795,2.83197538,238.28,238.27,32.08]
[1758366261006,2.83197538,238.28,238.24,13.87991715]
[1758366261210,3.54197538,238.27,238.25,32.08]
[1758366261414,2.83197538,238.26,238.25,32.08]
[1758366261609,3.54197538,238.26,238.25,32.08]
[1758366261810,3.54197538,238.26,238.24,12.72408024]
[1758366262008,0.71,238.26,238.24,0.28432314]
[1758366263616,0.71,238.26,238.23,0.28432314]
[1758366263839,0.71,238.26,238.25,32.08]
[1758366264026,9.71327667,238.26,238.25,32.08]
[1758366264206,5.51618107,238.26,238.25,32.08]
[1758366265117,3.54165084,238.26,238.25,32.08]
[1758366265321,2.83165084,238.26,238.25,32.08]
[1758366265497,1.97453023,238.28,238.25,32.08]
[1758366265699,2.83094348,238.27,238.25,32.08]
[1758366265900,2.83094348,238.26,238.25,32.08]
[1758366274006,2.83094348,238.26,238.23,4.19762069]
[1758366274211,2.83094348,238.26,238.22,12.88460107]
[1758366274212,1.95428036,238.25,238.24,32.08]
[1758366274728,4.78447581,238.25,238.24,32.08]
[1758366276532,4.09447581,238.25,238.24,32.08]
[1758366277017,4.78447581,238.25,238.24,32.08]
[1758366277421,2.83019545,238.25,238.24,32.08]
[1758366278032,4.09447581,238.25,238.24,32.08]
[1758366278716,2.83019545,238.25,238.24,32.08]
[1758366280224,3.52019545,238.25,238.24,32.08]
[1758366280408,8.98174758,238.25,238.24,32.08]
[1758366283935,2.83019545,238.25,238.24,32.08]
[1758366284126,2.83019545,238.26,238.24,32.73]
[1758366284323,79.96428036,238.27,238.24,32.73]
[1758366284641,2.82882844,238.26,238.24,32.73]
[1758366284834,79.96428036,238.27,238.24,32.73]
[1758366285141,2.82882995,238.26,238.25,0.65]
[1758366285732,2.82882995,238.26,238.24,32.08]
[1758366286118,2.82882995,238.26,238.24,32.73]
[1758366286328,78.7,238.27,238.24,32.73]
[1758366286539,2.82894676,238.26,238.24,32.73]
[1758366286740,78.7,238.27,238.24,36.92737427]
[1758366286930,2.82894676,238.26,238.24,36.92737427]
[1758366287128,0.2,238.29,238.25,4.84718366]
[1758366287350,2.82907014,238.28,238.26,1.26428036]
[1758366287539,0.2,238.29,238.27,32.75]
[1758366287736,0.2,238.29,238.28,0.65]
[1758366288039,3.02881809,238.29,238.28,0.65]
[1758366288242,3.02881809,238.29,238.28,4.84674332]
[1758366291045,3.02881809,238.29,238.27,32.1]
[1758366291243,0.2,238.29,238.27,32.1]
[1758366291444,0.2,238.29,238.28,32.08]
[1758366291648,3.02921232,238.29,238.28,32.08]
[1758366292832,0.2,238.29,238.28,32.08]
[1758366293032,3.02921232,238.29,238.28,32.08]
[1758366295745,4.98349268,238.29,238.28,32.08]
[1758366296729,9.1801309,238.29,238.28,32.08]
[1758366297344,4.98349268,238.29,238.28,32.08]
[1758366299337,9.18005988,238.29,238.28,32.08]
[1758366300450,7.91577952,238.29,238.28,32.08]
[1758366300637,9.18005988,238.29,238.28,32.08]
[1758366301453,8.49005988,238.29,238.28,32.08]
[1758366301755,9.21005988,238.29,238.28,32.08]
[1758366303057,9.21005988,238.29,238.23,0.68]
[1758366303237,2.82921232,238.28,238.24,32.08]
[1758366303436,2.82921232,238.27,238.24,32.08]
[1758366303636,2.82921232,238.26,238.24,32.76]
[1758366303845,2.82921232,238.25,238.24,32.76]
[1758366304533,4.09349268,238.25,238.24,32.76]
[1758366305649,4.09349268,238.25,238.24,32.08]
[1758366306959,2.82921232,238.25,238.24,36.95744795]
[1758366308151,4.09349268,238.27,238.24,36.95744795]
[1758366308350,4.09349268,238.26,238.24,36.95744795]
[1758366308545,1.26428036,238.26,238.24,36.95744795]
[1758366309055,1.26428036,238.26,238.24,36.27744795]
[1758366309366,1.26428036,238.26,238.25,0.68]
[1758366309536,4.09521431,238.26,238.25,0.68]
[1758366309849,4.09521431,238.26,238.25,32.74]
[1758366310053,2.83093395,238.26,238.25,32.74]
[1758366312362,2.83093395,238.26,238.25,36.93727177]
[1758366318060,3.55093395,238.26,238.25,32.06]
[1758366318358,4.81521431,238.26,238.25,32.06]
[1758366318563,8.91042862,238.26,238.25,32.06]
[1758366319768,8.91042862,238.26,238.21,4.48212951]
[1758366320064,1.26428036,238.24,238.22,32.08]
[1758366320254,1.98428036,238.24,238.22,32.08]
[1758366320856,1.26428036,238.23,238.22,32.08]
[1758366321056,0.72,238.24,238.22,32.08]
[1758366321367,1.26428036,238.23,238.22,32.08]
[1758366322968,2.83117311,238.23,238.22,33.02432314]
[1758366323166,2.83089276,238.28,238.22,34.00428036]
[1758366323346,7.02825703,238.27,238.23,0.68]
[1758366323546,2.83089276,238.26,238.24,32.06]
[1758366323771,4.19736427,238.27,238.24,32.74]
[1758366324068,2.83096272,238.26,238.24,32.74]
[1758366324246,4.19736427,238.27,238.24,32.74]
[1758366324584,2.83102577,238.26,238.25,0.68]
[1758366326273,4.39736427,238.29,238.26,4.1970956]
[1758366326454,4.39736427,238.29,238.27,32.8]
[1758366326455,2.83127921,238.28,238.27,32.8]
[1758366329468,2.83127921,238.28,238.27,36.99691946]
[1758366330267,0.2,238.29,238.27,36.99691946]
[1758366330977,0.2,238.29,238.27,36.27691946]
[1758366331769,0.2,238.29,238.27,32.08]
[1758366331956,2.83121991,238.28,238.27,32.08]
[1758366332352,3.52121991,238.28,238.27,32.08]
[1758366333780,2.83121991,238.28,238.27,32.08]
[1758366334161,2.83121991,238.28,238.27,32.8]
[1758366335760,2.83121991,238.28,238.27,36.99691946]
[1758366335993,0.2,238.29,238.27,36.99691946]
[1758366336158,0.2,238.29,238.28,1.00432314]
[1758366336353,3.03095099,238.29,238.28,2.97906188]
[1758366336558,0.2,238.29,238.28,16.57465589]
[1758366337688,0.2,238.29,238.28,20.77139921]
[1758366339862,0.2,238.29,238.28,5.20106646]
[1758366343657,0.89,238.29,238.27,32.08]
[1758366344058,3.71999864,238.29,238.27,32.08]
[1758366344485,3.02999864,238.29,238.27,36.99685997]
[1758366349586,3.02999864,238.29,238.27,36.27685997]
[1758366350286,3.02999864,238.29,238.27,36.99685997]
[1758366350487,3.02999864,238.29,238.28,0.72]
[1758366350488,0.2,238.29,238.28,0.72]
[1758366350870,0.2,238.29,238.28,4.91674332]
[1758366357000,0.2,238.29,238.28,5.20106646]
[1758366357176,0.2,238.29,238.28,20.77139921]
[1758366363927,7.02279067,238.36,238.29,13.87991715]
[1758366364083,0.8,238.39,238.35,1.97473874]
[1758366364084,2.82690569,238.38,238.35,1.97473874]
[1758366364286,0.1,238.39,238.38,4.1949828]
[1758366364483,0.1,238.39,238.38,36.2349828]
[1758366364696,2.92690569,238.39,238.38,36.2349828]
[1758366364901,0.1,238.39,238.38,36.2349828]
[1758366365099,2.92690569,238.39,238.38,36.2349828]
[1758366365323,0.1,238.39,238.38,36.2349828]
[1758366365823,2.92690569,238.39,238.38,36.2349828]
[1758366366111,0.1,238.39,238.38,36.2349828]
[1758366367916,0.8,238.39,238.38,32.04]
[1758366368295,0.8,238.39,238.38,36.2349828]
[1758366368829,0.8,238.39,238.38,36.2549828]
[1758366369108,0.1,238.39,238.38,36.2549828]
[1758366372514,0.1,238.39,238.38,38.94972154]
[1758366372690,0.1,238.39,238.38,52.82963869]
[1758366377419,0.1,238.39,238.38,20.76963869]
[1758366377614,0.1,238.39,238.38,52.08963869]
[1758366377816,0.1,238.39,238.38,52.80963869]
[1758366378211,0.1,238.39,238.38,18.07489995]
[1758366378516,0.1,238.39,238.38,50.11489995]
[1758366379504,0.1,238.39,238.38,52.80963869]
[1758366381330,0.1,238.39,238.38,50.83489995]
[1758366381519,0.1,238.39,238.38,52.80963869]
[1758366382326,0.1,238.39,238.38,50.83489995]
[1758366382528,0.1,238.39,238.38,52.80963869]
[1758366385443,0.1,238.39,238.38,52.08963869]
[1758366385644,0.1,238.39,238.38,50.11489995]
[1758366387033,0.1,238.39,238.38,52.76963869]
[1758366388137,0.1,238.39,238.38,52.08963869]
[1758366390639,0.1,238.39,238.38,52.76963869]
[1758366391854,0.1,238.39,238.38,52.0572436]
[1758366392148,0.1,238.39,238.38,52.0372436]
[1758366393150,0.1,238.39,238.38,50.09489995]
[1758366393327,0.1,238.39,238.38,51.3572436]
[1758366393641,0.1,238.39,238.38,50.09489995]
[1758366400341,0.1,238.39,238.38,18.07489995]
[1758366400541,0.1,238.39,238.38,50.09489995]
[1758366401261,0.1,238.39,238.38,52.0372436]
[1758366401480,0.1,238.39,238.38,50.09489995]
[1758366401643,0.1,238.39,238.38,51.3572436]
[1758366404639,0.1,238.39,238.38,50.09489995]
[1758366404846,0.1,238.39,238.38,51.3572436]
[1758366406859,0.1,238.39,238.38,50.09489995]
[1758366409672,0.1,238.39,238.38,51.3572436]
[1758366409966,2.93007822,238.39,238.38,51.3572436]
[1758366412763,2.93007822,238.39,238.38,19.3372436]
[1758366412970,2.93007822,238.39,238.38,52.0372436]
[1758366413469,0.1,238.39,238.38,52.0372436]
[1758366414274,2.93115838,238.39,238.38,51.3572436]
[1758366417155,2.93115838,238.39,238.38,52.0472436]
[1758366417358,2.93115838,238.39,238.38,50.78489995]
[1758366417561,2.93115838,238.39,238.38,52.0472436]
[1758366417953,2.93115838,238.39,238.38,51.3572436]
[1758366419554,2.93115838,238.39,238.38,52.0472436]
[1758366422381,2.93115838,238.39,238.38,50.78489995]
[1758366423656,2.93115838,238.39,238.38,50.09489995]
[1758366426552,2.93115838,238.39,238.38,50.80489995]
[1758366427959,0.1,238.39,238.38,50.80489995]
[1758366428163,0.1,238.39,238.38,52.0672436]
[1758366435571,0.1,238.39,238.38,53.74830435]
[1758366435782,0.1,238.39,238.38,52.0672436]
[1758366443278,0.1,238.39,238.38,53.84830435]
[1758366443472,0.1,238.39,238.38,52.0672436]
[1758366443784,0.1,238.39,238.38,53.84830435]
[1758366451892,0.1,238.39,238.38,54.55797285]
[1758366452286,0.1,238.39,238.38,51.8759607]
[1758366452601,0.77,238.39,238.38,50.09489995]
[1758366453276,0.1,238.39,238.38,50.09489995]
[1758366456101,0.1,238.39,238.38,52.0669121]
[1758366456595,0.77,238.39,238.38,52.0669121]
[1758366456977,0.1,238.39,238.38,52.0669121]
[1758366458601,0.1,238.39,238.38,50.09489995]
[1758366458901,3.60215598,238.39,238.38,50.09489995]
[1758366469012,2.93215598,238.39,238.38,50.09489995]
[1758366470116,2.93215598,238.39,238.38,50.78489995]
[1758366470594,2.93215598,238.39,238.38,52.7569121]
[1758366471095,2.93215598,238.39,238.38,50.09489995]
[1758366471294,2.93215598,238.39,238.38,52.7569121]
[1758366478014,2.93215598,238.39,238.38,50.09489995]
[1758366478205,2.93215598,238.39,238.38,52.0669121]
[1758366478399,2.93215598,238.39,238.38,52.7869121]
[1758366478716,2.93215598,238.39,238.38,52.0669121]
[1758366479019,2.93215598,238.39,238.38,52.7869121]
[1758366483017,0.1,238.39,238.38,52.7869121]
[1758366484429,0.1,238.39,238.38,52.0669121]
[1758366484622,2.93205318,238.39,238.38,50.09489995]
[1758366484926,2.93205318,238.39,238.38,52.0669121]
[1758366486421,3.65205318,238.39,238.38,50.09489995]
[1758366486824,3.65205318,238.39,238.35,2.19164909]
[1758366486825,9.81888338,238.39,238.35,2.19164909]
[1758366487002,1.97201215,238.37,238.36,32.0]
[1758366487309,5.52406533,238.37,238.36,32.0]
[1758366487505,5.52406533,238.37,238.35,2.19164909]
[1758366487712,3.55205318,238.36,238.35,2.47597223]
[1758366487903,3.55205318,238.36,238.35,34.19164909]
[1758366488226,3.55205318,238.36,238.35,34.47597223]
[1758366488925,9.07611851,238.36,238.35,34.47597223]
[1758366491031,9.07611851,238.36,238.35,2.47597223]
[1758366491230,9.07611851,238.36,238.35,34.47597223]
[1758366492031,8.35611851,238.36,238.35,34.47597223]
[1758366492828,9.07611851,238.36,238.35,34.47597223]
[1758366494043,9.07611851,238.36,238.35,2.47597223]
[1758366494346,9.07180848,238.36,238.35,34.47597223]
[1758366494715,6.24406533,238.36,238.35,34.47597223]
[1758366495023,9.07180848,238.36,238.35,34.47597223]
[1758366495433,0.72,238.36,238.35,34.47597223]
[1758366495637,3.54774315,238.36,238.35,34.47597223]